Cogmind - Beta 14 @@@ ROGUE MODE // 2024.09.29 @ 12:55:26 Player: Cmdr.Laserstrahl Result: Destroyed by as-28670 with Assembled Blade Performance ------------- Evolutions (0) 0 Regions Visited (2) 400 Robots Destroyed (15) 75 Value Destroyed (308) 308 Prototype IDs (0) 0 Alien Tech Used (0) 0 Bonus (0) 0 TOTAL SCORE: 783 Bonus ------- None Cogmind --------- Core Integrity 0/250 Matter 290/300 Energy 265/265 System Corruption 0% Temperature Cool (0) Movement Rolling (115) Ox1 Location -10/Mines Parts ------- > --- POWER (1) -------- Improved Ion Engine > --- PROPULSION (2) --- Compact Wheel > --- UTILITY (2) ------ Medium Storage Unit > --- WEAPON (2) ------- (None) > --- INVENTORY (10) --- Ion Engine Aluminum Leg Medium Matter Pod (100) Medium Matter Pod (99) Targeting Computer EM Pulse Gun Assault Rifle Mining Laser Peak State ------------ > --- POWER ------------ Improved Ion Engine > --- PROPULSION ------- Wheel Wheel > --- UTILITY ---------- Medium Storage Unit Seismic Detector > --- WEAPON ----------- Beam Rifle Heavy Assault Rifle > --- INVENTORY -------- Ion Engine Aluminum Leg Wheel Compact Wheel Medium Matter Pod Medium Matter Pod Improved Terrain Scanner EM Pulse Gun Light Assault Rifle Mining Laser [Rating: 11] Favorites ----------- Power Ion Engine Engine Ion Engine Propulsion Wheel Wheel Wheel Utility Seismic Detector Device Seismic Detector Storage Medium Storage Unit Weapon Light Assault Rifle Energy Gun Small Laser Ballistic Gun Light Assault Rifle Special Weapon Mining Laser Build | -11 -10 -10 ------- Run | Yrd Mat Min Slots Evolved . | . . . Power . | . . . Propulsion . | . . . Utility . | . . . Weapon . | . . . Parts Attached 20 | 8 3 9 Power 3 | 1 . 2 Engine 3 | 1 . 2 Core . | . . . Reactor . | . . . Propulsion 7 | 2 . 5 Treads . | . . . Leg . | . . . Wheel 7 | 2 . 5 Hover . | . . . Flight . | . . . Utility 4 | 3 1 . Device 2 | 2 . . Storage 2 | 1 1 . Processor . | . . . Hackware . | . . . Protection . | . . . Artifact . | . . . Weapon 6 | 2 2 2 Energy Gun 3 | 1 1 1 Energy Cannon . | . . . Ballistic Gun 2 | 1 . 1 Ballistic Cannon . | . . . Launcher . | . . . Special Weapon 1 | . 1 . Impact Weapon . | . . . Slashing Weapon . | . . . Piercing Weapon . | . . . Special Melee Weapon . | . . . Unidentified Prototypes . | . . . Parts Lost 8 | . . 8 Power . | . . . Propulsion 5 | . . 5 Utility 1 | . . 1 Weapon 2 | . . 2 Highest Loss Streak 6 | . . 6 To Critical Strikes . | . . . Average Slot Usage (%) 95 | . 100 92 Engine 14 | . 14 14 Wheel 25 | . 28 24 Device 13 | . 14 13 Storage 14 | . 14 14 Energy Gun 11 | . 9 12 Ballistic Gun 13 | . 14 12 Special Weapon 1 | . 4 . Peak Build Rating 11 | 9 8 11 Average Rating 7 | 6 8 7 On Entrance 5 | . 8 8 Naked Turns . | . . . Heaviest Build 24 | 13 18 24 Greatest Support 26 | 26 26 26 Greatest Overweight (x) 2 | . . 2 Average Overweight (x) . | . . . Largest Inventory Capacity 10 | 8 10 10 Average Capacity 9 | 7 9 10 Most Carried 10 | 8 10 10 Average Carried 8 | 4 8 9 Final Capacity 10 | 8 10 10 Final Carried 10 | 8 10 8 Class Distribution -------------------- 80% | Mutant 19% | Scavenger-Mutant Dominant Class ---------------- Mutant | -10/Materials Mutant | -10/Mines Resources | -11 -10 -10 ----------- Run | Yrd Mat Min Matter Collected 602 | 277 51 274 Remotely . | . . . Salvage Created 612 | 127 167 318 Parts 30 | 10 5 15 Haulers Intercepted . | . . . Recyclers Shooed 4 | . 1 3 Parts Field Recycled . | . . . Retrieved Matter . | . . . Parts Self-Destructed . | . . . Prevented . | . . . Kills | -11 -10 -10 ------- Run | Yrd Mat Min Combat Hostiles Destroyed 9 | . 2 7 Guns 9 | . 2 7 Classes Destroyed 5 | 2 1 2 Tunneler 3 | 3 . . Recycler 3 | 1 1 1 Swarmer 3 | . . 3 Grunt 4 | . 2 2 Sentry 2 | . . 2 Best Kill Streak 3 | 3 2 3 Combat Bots Only 3 | . 2 3 Max Kills in Single Turn 1 | 1 1 1 Gunslinging . | . . . Exploded . | . . . Melee . | . . . Uniques/NPCs Destroyed . | . . . Combat | -11 -10 -10 -------- Run | Yrd Mat Min Hostile Shots Fired 80 | . 7 73 Missed 16 | . 3 13 Damage Taken 1040 | . 43 997 Core 269 | . . 269 Absorbed by Shields . | . . . Core Remaining (%) 100 | 100 . . Volleys Fired 57 | 8 14 35 Largest 2 | 2 2 2 Hottest 100 | 60 100 60 Shots Fired 108 | 16 22 70 Gun 104 | 16 18 70 Cannon . | . . . Launcher . | . . . Special 4 | . 4 . Kinetic 53 | 8 10 35 Thermal 55 | 8 12 35 Explosive . | . . . Electromagnetic . | . . . Robot Hit Streak 13 | 3 9 13 Robot Miss Streak 5 | 2 3 5 Penetration Max . | . . . Secondary Targets 3 | . 1 2 Max Gunslinging Chain 1 | . 1 1 Shots Hit Robots 71 | 8 14 49 Core Hits 28 | 5 7 16 Critical Kills 1 | 1 . . Critical Parts Destroyed 2 | . 1 1 Critical Strikes 3 | 1 1 1 Destroy 3 | 1 1 1 Melee Attacks . | . . . Impact . | . . . Slashing . | . . . Piercing . | . . . Sneak Attacks . | . . . Combat Hostiles . | . . . Follow-up Attacks . | . . . Damage Inflicted 697 | 89 138 470 Guns 697 | 89 138 470 Cannons . | . . . Explosions . | . . . Melee . | . . . Ramming . | . . . Kinetic 302 | 25 69 208 Thermal 395 | 64 69 262 Explosive . | . . . Electromagnetic . | . . . Impact . | . . . Slashing . | . . . Piercing . | . . . Highest Corruption . | . . . Average Corruption . | . . . Corruption Purged . | . . . Corruption Blocked . | . . . Overload Shots . | . . . Overflow Damage . | . . . Projectiles . | . . . Explosions . | . . . Melee . | . . . Knockbacks . | . . . Impact . | . . . Kinetic . | . . . Secondary . | . . . Self-Inflicted Damage . | . . . Shots . | . . . Rammed . | . . . Targets Rammed . | . . . Kicked . | . . . Crushed . | . . . Highest Temperature 203 | 40 64 203 Average Temperature 52 | 22 23 68 Received Heat Transfer 194 | . 24 170 Siege Activations . | . . . Robots Corrupted . | . . . Combat Hostiles . | . . . Parts Fried . | . . . Impact Corruptions . | . . . Robots Melted . | . . . Combat Hostiles . | . . . Parts Melted 2 | . . 2 Heat Transferred 900 | 150 150 600 Parts Sabotaged . | . . . Parts Stolen . | . . . Parts Stripped . | . . . Power Chain Reactions . | . . . Alert | -11 -10 -10 ------- Run | Yrd Mat Min Peak Influence 247 | 20 70 247 Initial 27 | . 13 27 Average 75 | 8 27 128 Maximum Alert Level 1 | . . 1 Low Security (%) 90 | 100 100 80 Level 1 9 | . . 19 Level 2 . | . . . Level 3 . | . . . Level 4 . | . . . Level 5 . | . . . High Security . | . . . Max Security . | . . . Squads Dispatched 1 | . 1 . Investigation . | . . . Extermination . | . . . Reinforcement 1 | . 1 . Assault . | . . . Garrison . | . . . Intercept . | . . . Searches Triggered . | . . . Construction Impeded . | . . . Haulers Reinforced . | . . . Active Scanning Responses . | . . . Cargo Convoy Interrupts . | . . . Stealth | -11 -10 -10 --------- Run | Yrd Mat Min Distress Signals . | . . . Communications Jammed . | . . . Distress Signals . | . . . Times Spotted 34 | . 5 29 Peak Tracking Total 22 | . 3 22 Tactical Retreats 2 | . . 2 Traps | -11 -10 -10 ------- Run | Yrd Mat Min Traps Triggered . | . . . Indirectly . | . . . Trap Hack Attempts . | . . . Triggered . | . . . Disarmed . | . . . Reprogrammed . | . . . Reused . | . . . Traps Extracted . | . . . Installed . | . . . Triggered . | . . . Machines | -11 -10 -10 ---------- Run | Yrd Mat Min Machines Disabled . | . . . Max in Single Turn . | . . . Machines Repaired . | . . . Machines Dismantled . | . . . Machines Sabotaged . | . . . Overloaded Fab Kills . | . . . Hacking | -11 -10 -10 --------- Run | Yrd Mat Min Machines Accessed 2 | . 2 . Terminals 2 | . 2 . Fabricators . | . . . Repair Stations . | . . . Recycling Units . | . . . Scanalyzers . | . . . Garrison Access . | . . . Total Hacks 6 | . 6 . Successful 3 | . 3 . Failed 3 | . 3 . Catastrophic . | . . . Database Lockouts . | . . . Manual 5 | . 5 . Terminals 6 | . 6 . Fabricators . | . . . Repair Stations . | . . . Recycling Units . | . . . Scanalyzers . | . . . Garrison Access . | . . . Terminal Hacks . | . . . Fabricator Hacks . | . . . Repair Station Hacks . | . . . Recycling Unit Hacks . | . . . Scanalyzer . | . . . Garrison Access Hacks . | . . . Unauthorized Hacks 3 | . 3 . Terminals 3 | . 3 . Track 1 | . 1 . Botnet 2 | . 2 . Fabricators . | . . . Repair Stations . | . . . Recycling Units . | . . . Scanalyzers . | . . . Garrison Access . | . . . Data Cores Recovered . | . . . Used . | . . . Hacking Detections 2 | . 2 . Full Trace Events . | . . . Feedback Events . | . . . Feedback Blocked . | . . . Robot Schematics Acquired . | . . . Robots Built . | . . . Authchips . | . . . Time . | . . . Total Robot Build Rating . | . . . Part Schematics Acquired . | . . . Parts Built . | . . . Authchips . | . . . Time . | . . . Total Part Build Rating . | . . . Parts Repaired . | . . . Time . | . . . Parts Recycled . | . . . Recycled Matter . | . . . Retrieved Matter . | . . . Retrieved Components . | . . . Parts Scanalyzed . | . . . Part Schematics Acquired . | . . . Parts Damaged . | . . . Bothacking | -11 -10 -10 ------------ Run | Yrd Mat Min Used RIF Installer . | . . . Robots Hacked . | . . . Non-combat . | . . . Combat . | . . . Robot Hacks Applied . | . . . Relay Couplers Released . | . . . Fabnet Peak Effective % . | . . . Robots Rewired . | . . . Allies Hacked . | . . . Hacks Repelled . | . . . Allies | -11 -10 -10 -------- Run | Yrd Mat Min Total Allies . | . . . Largest Group . | . . . Highest-Rated Group . | . . . Highest-Rated Ally . | . . . Total Orders . | . . . Ally Attacks . | . . . Total Damage . | . . . Kills . | . . . Allies Corrupted . | . . . Allies Melted . | . . . Intel | -11 -10 -10 ------- Run | Yrd Mat Min Robot Analysis Total . | . . . Derelict Logs Recovered . | . . . Drone Launches . | . . . Drone Recoveries . | . . . Exploration | -11 -10 -10 ------------- Run | Yrd Mat Min Turns Passed 593 | 106 188 299 Spaces Moved 419 | 60 144 215 Core 3 | 3 . . Treads . | . . . Legs . | . . . Wheels 416 | 57 144 215 Hover . | . . . Flight . | . . . Fastest Speed 50 | 50 90 80 Average Speed 87 | 90 90 85 Slowest Speed 115 | 100 90 115 Overloaded Moves . | . . . Propulsion Burnouts . | . . . Robots Hopped . | . . . Cave-ins Triggered . | . . . Exploration Rate (%) 25 | 4 29 44 Regions Visited 2 Branch Regions 1 Pre-discovered Areas . | . . . Known Exits Taken . | . . . Unknown Exits Taken 2 | 1 1 . Scrap Searched . | . . . Spaces Dug 4 | . 4 . Terrain Destroyed 4 | . 4 . Melee . | . . . Projectile 4 | . 4 . AOE . | . . . Terrain Rammed . | . . . Walls Destroyed . | . . . Machines Disabled . | . . . Actions | -11 -10 -10 --------- Run | Yrd Mat Min Total 542 | 99 173 270 Wait 12 | 2 10 . Move 417 | 59 143 215 Hop . | . . . Pick Up 24 | 18 2 4 Fast Attach 3 | 1 . 2 Attach 11 | 7 . 4 Detach . | . . . Swap 6 | . 3 3 Drop 12 | 4 1 7 Fire 57 | 8 14 35 Melee . | . . . Ram . | . . . Kick . | . . . Crush . | . . . Escape Stasis . | . . . Rewire . | . . . Trap . | . . . Miscellaneous . | . . . Route ------- -11/Scrapyard -10/Materials -10/Mines History --------- Turn | Location | Event 15 | -11/Scrapyard | Discovered new exit (range 16) 107 | -11/Scrapyard | Entered Materials 259 | -10/Materials | Discovered new exit (range 14) 295 | -10/Materials | Entered Mines 304 | -10/Mines | Build established: Mutant 517 | -10/Mines | Assembled infested the area 522 | -10/Mines | Assisted by a Guerilla fighting off Assembled 567 | -10/Mines | Core integrity fell below 50% 580 | -10/Mines | Core integrity fell below 20% 594 | -10/Mines | Destroyed by as-28670 with Assembled Blade Last Messages --------------- 00552_ Acquired Assault Rifle. 00554_ Dropped Imp. Terrain Scanner. 00554_ Acquired Targeting Computer. 00560_ Wheel destroyed. 00560_ Beam Rifle destroyed. 00566_ The unstable cave ceiling collapses. 00566_ Hvy. Assault Rifle destroyed. 00567_ The unstable cave ceiling collapses. 00567_ Wheel destroyed. 00570_ as-23533 destroyed. 00573_ as-60099 destroyed. 00573_ as-89062 destroyed. 00573_ as-65288 destroyed. 00575_ as-89359 destroyed. 00575_ as-12651 destroyed. 00575_ as-73112 destroyed. 00576_ as-48874 destroyed. 00576_ D-53 Grenadier destroyed. 00579_ The unstable cave ceiling collapses. 00581_ Seismic Detector destroyed. Map ----- +----------------------------------------------------+ | ??????????????????????????????? | | ?????????????? ???????????????? | | ????????????? ???????????????? | | ????????#???? ???????????????? | | ??????? #???# ??????????????? | | ???????? #??# ??????????????? | | ????????? #?# ??????????????? | | ?????????? ## ??????????????? | | ??????????? %##????????????? | | ???????????? #????????????? | | ????????????? #????????????? | | ?????????????# % ##??#######??? | | ??????### ### ####"" !##?? | | ??????# = % # #" !! "#?? | | ????????? *%! % # *[%#?? | | ????????????? ![ #### | | ????????????? ## # | | ?????????????# %% # # | | ?????????????# %= # | | ?????????????# # | | ????????????## ## | | ????????????# #? | | ????#???????## ###? | | ????# ??????# # #?? | | ????# #####?# !%=###? | | ????# @aa #?# | | ????##### ### | | ????????# ## | | ????????# ## ### | | ????????# ## ##?## "# | | ????????# ##???# ##%# | | ????????# ## ##????## ##? # | | ????????# ## ##??????? ###???# | | ???????## ## #???????? #?????? | | ???????# #???????? #?????? | | ???????# #######??????? #?????? | | ???????# #?## #?????# #?????? | | ???????# #?# #????# #???# # | | ?????### #?# ###?# #???# | | ????## ### ### #???# # | | ????# #?# ## #???? # | | ????# #??? ## #????? | | ????## #?????# ## #?????# | | ?????## #??????# # ###???# | | ?????## ##??????# #?### | | ???### ######### ### ### | | ??# #?# | | ?# ########### #?# | | ?# ##?????????## #?##### | | ?## #????????????# #?????### | +----------------------------------------------------+ Best States ------------- Heat Dissipation 25 Energy Generation 12 Energy Capacity 265 Matter Stores 300 Matter Capacity 300 Sight Range 16 Terrain Scan Range 16 Terrain Scan Density 10 Evasion (%) 44 Item Schematics ----------------- None Robot Schematics ------------------ None Fabricated ------------ Nothing Alien Tech Used ----------------- None Achievements -------------- None Challenges ------------ None Game ------ Seed DynamicTargetReplica Manual? 0 Play Time 00:13:00 Cumulative 261.0 hours Start 2024.09.29 @ 12:42:26 End 2024.09.29 @ 12:55:26 Sessions 1 Manual Loads 0 Difficulty Rogue Special Mode None Game No. 114 Rogue 111 Adventurer 3 Explorer 0 Win Type - Total 0 Types 0/0/0/0/0/0/0/0/0 Lore% 22 Gallery% 50 Achievement% 37 Wizard Run 0 Options --------- Layout 2 ASCII 0 Keyboard 0 Movement Mouse Keybinds 0 Fullscreen 2 Font 24/Smallcaps Map View 50x44 Zoom Use 0% Tactical HUD 1 Map Filters NONE Filters NONE Steam 1 RUN: 4864242c-55ce-46c0-8081-2825c5e56974